[Event "Early-Titled-Tuesday-Blitz-March-12-2024"]
[Site "Chess.com"]
[Date "2024.03.12"]
[Round "3"]
[White "remyrushbrooke"]
[Black "Statham_01"]
[Result "0-1"]
[WhiteElo "2262"]
[BlackElo "2585"]
[TimeControl "180+1"]
[EndTime "8:28:03 PDT"]
[Termination "Statham_01 won by resignation"]

1. Nf3 {[%clk 0:03:00.9]} 1... Nc6 {[%clk 0:02:39.7]} 2. g3 {[%clk 0:03:01.5]}
2... e5 {[%clk 0:02:39.1]} 3. e4 {[%clk 0:03:00.4]} 3... Bc5 {[%clk 0:02:38.5]}
4. Bg2 {[%clk 0:03:00.3]} 4... d6 {[%clk 0:02:38.8]} 5. c3 {[%clk 0:02:59.4]}
5... Nf6 {[%clk 0:02:33.4]} 6. d4 {[%clk 0:02:39.3]} 6... exd4 {[%clk
0:02:31.6]} 7. cxd4 {[%clk 0:02:40.2]} 7... Bb4+ {[%clk 0:02:32]} 8. Bd2 {[%clk
0:02:40.9]} 8... Nxe4 {[%clk 0:02:14.5]} 9. Bxb4 {[%clk 0:02:40.5]} 9... Nxb4
{[%clk 0:02:15.4]} 10. Qa4+ {[%clk 0:02:40.6]} 10... Nc6 {[%clk 0:02:15.9]} 11.
d5 {[%clk 0:02:40.8]} 11... Nc5 {[%clk 0:02:16]} 12. Qb5 {[%clk 0:02:38.6]}
12... a6 {[%clk 0:02:13.4]} 13. Qe2+ {[%clk 0:02:35.5]} 13... Ne7 {[%clk
0:02:13.6]} 14. Nc3 {[%clk 0:02:35.4]} 14... O-O {[%clk 0:02:13.1]} 15. O-O
{[%clk 0:02:32.4]} 15... Bf5 {[%clk 0:02:13.3]} 16. Rfe1 {[%clk 0:02:28.8]}
16... Ng6 {[%clk 0:02:08.9]} 17. Nd4 {[%clk 0:02:26.9]} 17... Bd7 {[%clk
0:02:06.9]} 18. a4 {[%clk 0:02:15.4]} 18... Qf6 {[%clk 0:02:02.8]} 19. Qd2
{[%clk 0:02:09.5]} 19... a5 {[%clk 0:01:32.5]} 20. Ncb5 {[%clk 0:02:06.5]} 20...
Bxb5 {[%clk 0:01:29.1]} 21. Nxb5 {[%clk 0:02:07.4]} 21... Nb3 {[%clk 0:01:28.2]}
22. Qc2 {[%clk 0:01:45.3]} 22... Nxa1 {[%clk 0:01:27]} 23. Rxa1 {[%clk
0:01:46.2]} 23... Rac8 {[%clk 0:01:17.6]} 24. Rc1 {[%clk 0:01:43.4]} 24... Ne5
{[%clk 0:01:07.7]} 25. Qd2 {[%clk 0:01:43.5]} 25... c6 {[%clk 0:01:03.1]} 26.
Na7 {[%clk 0:01:29.3]} 26... Ra8 {[%clk 0:00:54.5]} 27. dxc6 {[%clk 0:00:54.1]}
27... Rxa7 {[%clk 0:00:53.3]} 28. c7 {[%clk 0:00:54.4]} 28... Rc8 {[%clk
0:00:28.8]} 29. Rc3 {[%clk 0:00:54.7]} 29... b6 {[%clk 0:00:22.9]} 30. Bh3
{[%clk 0:00:34.5]} 30... Rcxc7 {[%clk 0:00:16.9]} 31. Qe3 {[%clk 0:00:22.7]}
31... Rxc3 {[%clk 0:00:14.5]} 32. Qxb6 {[%clk 0:00:22.5]} 32... Rc1+ {[%clk
0:00:13.5]} 33. Bf1 {[%clk 0:00:23.1]} 33... Rac7 {[%clk 0:00:08.8]} 34. Qxa5
{[%clk 0:00:19.6]} 34... g6 {[%clk 0:00:07.7]} 35. Qd2 {[%clk 0:00:16.8]} 35...
Nf3+ {[%clk 0:00:07.6]} 36. Kg2 {[%clk 0:00:17.4]} 36... Nxd2 {[%clk 0:00:08.5]}
0-1

[Event "Early-Titled-Tuesday-Blitz-March-12-2024"]
[Site "Chess.com"]
[Date "2024.03.12"]
[Round "3"]
[White "Hovik_Hayrapetyan"]
[Black "Firouzja2003"]
[Result "0-1"]
[WhiteElo "2843"]
[BlackElo "3143"]
[TimeControl "180+1"]
[EndTime "8:28:05 PDT"]
[Termination "Firouzja2003 won by resignation"]

1. d4 {[%clk 0:03:00.9]} 1... Nf6 {[%clk 0:02:56.9]} 2. c4 {[%clk 0:03:00.7]}
2... e6 {[%clk 0:02:57.3]} 3. Nc3 {[%clk 0:03:01]} 3... Bb4 {[%clk 0:02:56.4]}
4. Nf3 {[%clk 0:03:01.4]} 4... O-O {[%clk 0:02:55.7]} 5. Bg5 {[%clk 0:03:00.7]}
5... h6 {[%clk 0:02:54.8]} 6. Bh4 {[%clk 0:03:00.6]} 6... c5 {[%clk 0:02:50.3]}
7. Rc1 {[%clk 0:02:59.6]} 7... cxd4 {[%clk 0:02:49.8]} 8. Nxd4 {[%clk
0:03:00.5]} 8... d5 {[%clk 0:02:43.6]} 9. cxd5 {[%clk 0:03:01.4]} 9... g5 {[%clk
0:02:43.8]} 10. Bg3 {[%clk 0:03:01.4]} 10... Qxd5 {[%clk 0:02:41.8]} 11. e3
{[%clk 0:02:54.4]} 11... Qxa2 {[%clk 0:02:34.4]} 12. Bd3 {[%clk 0:02:54]} 12...
Qxb2 {[%clk 0:02:24.8]} 13. O-O {[%clk 0:02:53.8]} 13... Bxc3 {[%clk 0:02:25.2]}
14. Rc2 {[%clk 0:02:54.1]} 14... Qb4 {[%clk 0:02:19.9]} 15. Nb5 {[%clk
0:02:54.5]} 15... e5 {[%clk 0:02:05.7]} 16. Rxc3 {[%clk 0:02:54.3]} 16... Nc6
{[%clk 0:01:59.3]} 17. f4 {[%clk 0:02:54.8]} 17... gxf4 {[%clk 0:01:37.2]} 18.
Be1 {[%clk 0:02:53.2]} 18... Qe7 {[%clk 0:01:26]} 19. exf4 {[%clk 0:02:51.8]}
19... Nd5 {[%clk 0:01:19.5]} 20. Rf3 {[%clk 0:01:38.9]} 20... exf4 {[%clk
0:01:14.5]} 21. Bc2 {[%clk 0:01:11.4]} 21... Nxc3 {[%clk 0:00:58.3]} 22. Bxc3
{[%clk 0:01:12.3]} 22... Bf5 {[%clk 0:00:13.9]} 23. Bxf5 {[%clk 0:01:03.8]}
23... Qc5+ {[%clk 0:00:14.2]} 24. Nd4 {[%clk 0:01:04.3]} 24... Rad8 {[%clk
0:00:14.9]} 25. Rxf4 {[%clk 0:01:00.5]} 25... Qxc3 {[%clk 0:00:14.4]} 26. Qg4+
{[%clk 0:00:53.7]} 26... Kh8 {[%clk 0:00:14.7]} 27. Qh4 {[%clk 0:00:51.1]} 27...
Qe3+ {[%clk 0:00:13.1]} 28. Kf1 {[%clk 0:00:49.5]} 28... Rd6 {[%clk 0:00:10.3]}
29. Be6 {[%clk 0:00:37.2]} 29... Rxe6 {[%clk 0:00:03.9]} 30. Nxe6 {[%clk
0:00:37.1]} 30... Qxe6 {[%clk 0:00:04]} 31. Rf6 {[%clk 0:00:37.7]} 31... Qe5
{[%clk 0:00:04]} 32. Rxh6+ {[%clk 0:00:22.9]} 32... Kg8 {[%clk 0:00:04.7]} 33.
Rh5 {[%clk 0:00:14.3]} 33... Qa1+ {[%clk 0:00:04.9]} 34. Kf2 {[%clk 0:00:07.7]}
34... Qd4+ {[%clk 0:00:04.5]} 35. Qxd4 {[%clk 0:00:07.2]} 35... Nxd4 {[%clk
0:00:05.4]} 0-1

[Event "Early-Titled-Tuesday-Blitz-March-12-2024"]
[Site "Chess.com"]
[Date "2024.03.12"]
[Round "3"]
[White "MarcoRiehle"]
[Black "Javylavilla"]
[Result "0-1"]
[WhiteElo "2805"]
[BlackElo "2372"]
[TimeControl "180+1"]
[EndTime "8:28:09 PDT"]
[Termination "Javylavilla won by checkmate"]

1. e4 {[%clk 0:03:00.9]} 1... c5 {[%clk 0:02:59.7]} 2. a3 {[%clk 0:03:00.7]}
2... d6 {[%clk 0:02:58.5]} 3. b4 {[%clk 0:03:00.5]} 3... cxb4 {[%clk 0:02:54.6]}
4. axb4 {[%clk 0:03:01.4]} 4... Nf6 {[%clk 0:02:54.6]} 5. Nc3 {[%clk 0:03:01.3]}
5... Nc6 {[%clk 0:02:54.2]} 6. b5 {[%clk 0:03:01.4]} 6... Ne5 {[%clk 0:02:53.4]}
7. f4 {[%clk 0:02:59.4]} 7... Ned7 {[%clk 0:02:52.5]} 8. Nf3 {[%clk 0:02:58.1]}
8... e6 {[%clk 0:02:52.3]} 9. d4 {[%clk 0:02:57.6]} 9... Be7 {[%clk 0:02:52.5]}
10. e5 {[%clk 0:02:56.7]} 10... Nd5 {[%clk 0:02:48.9]} 11. Nxd5 {[%clk
0:02:56.4]} 11... exd5 {[%clk 0:02:49.8]} 12. Bd3 {[%clk 0:02:56.7]} 12... O-O
{[%clk 0:02:45.1]} 13. h4 {[%clk 0:02:55.5]} 13... h6 {[%clk 0:02:40.1]} 14. Be3
{[%clk 0:02:52.3]} 14... Nb6 {[%clk 0:02:38.1]} 15. f5 {[%clk 0:02:50.1]} 15...
Nc4 {[%clk 0:02:36.9]} 16. Bxc4 {[%clk 0:02:49.5]} 16... dxc4 {[%clk 0:02:36.7]}
17. g4 {[%clk 0:02:50.1]} 17... dxe5 {[%clk 0:02:35.5]} 18. Nxe5 {[%clk
0:02:47.5]} 18... Bb4+ {[%clk 0:02:35]} 19. Kf2 {[%clk 0:02:44.6]} 19... Qd5
{[%clk 0:02:33]} 20. Qf3 {[%clk 0:02:37.4]} 20... Qxb5 {[%clk 0:02:29.7]} 21. g5
{[%clk 0:02:35.2]} 21... f6 {[%clk 0:02:26.4]} 22. gxh6 {[%clk 0:02:32.5]} 22...
fxe5 {[%clk 0:02:24.5]} 23. Qg2 {[%clk 0:02:00.4]} 23... Rxf5+ {[%clk
0:02:22.5]} 24. Kg1 {[%clk 0:02:00]} 24... Rf7 {[%clk 0:02:04.7]} 25. Rf1 {[%clk
0:01:59.5]} 25... Rxf1+ {[%clk 0:02:01.8]} 26. Kxf1 {[%clk 0:02:00.4]} 26... Qd7
{[%clk 0:02:01.3]} 27. Rg1 {[%clk 0:01:57.5]} 27... Qf5+ {[%clk 0:01:55.9]} 28.
Bf2 {[%clk 0:01:51.8]} 28... g6 {[%clk 0:01:55.3]} 29. Qxg6+ {[%clk 0:01:48.3]}
29... Qxg6 {[%clk 0:01:54.6]} 30. Rxg6+ {[%clk 0:01:49.2]} 30... Kh7 {[%clk
0:01:54.8]} 31. h5 {[%clk 0:01:46.2]} 31... Bf5 {[%clk 0:01:52.3]} 32. Rf6
{[%clk 0:01:46]} 32... Bxc2 {[%clk 0:01:51.7]} 33. dxe5 {[%clk 0:01:45.2]} 33...
Rf8 {[%clk 0:01:49]} 34. Re6 {[%clk 0:01:42.2]} 34... Bc5 {[%clk 0:01:47.7]} 35.
Kg2 {[%clk 0:01:39.2]} 35... Rxf2+ {[%clk 0:01:46.6]} 36. Kg3 {[%clk 0:01:38.9]}
36... Be4 {[%clk 0:01:44.3]} 37. Re8 {[%clk 0:01:34.7]} 37... Be3 {[%clk
0:01:41.6]} 38. e6 {[%clk 0:01:32.9]} 38... Rf3+ {[%clk 0:01:36.5]} 39. Kg4
{[%clk 0:01:31.4]} 39... Rf4+ {[%clk 0:01:36]} 40. Kg3 {[%clk 0:01:31.8]} 40...
Rf6 {[%clk 0:01:34.2]} 41. e7 {[%clk 0:01:25.7]} 41... Re6 {[%clk 0:01:33.8]}
42. Rc8 {[%clk 0:01:26.3]} 42... Rxe7 {[%clk 0:01:32.1]} 43. Rxc4 {[%clk
0:01:26.8]} 43... Kxh6 {[%clk 0:01:30.5]} 44. Kg4 {[%clk 0:01:24.7]} 44... b5
{[%clk 0:01:24.8]} 45. Rb4 {[%clk 0:01:22.5]} 45... Bc6 {[%clk 0:01:20.9]} 46.
Rb2 {[%clk 0:01:20.3]} 46... a5 {[%clk 0:01:15.9]} 47. Rc2 {[%clk 0:01:18]}
47... Bd5 {[%clk 0:01:16]} 48. Kh4 {[%clk 0:01:13.5]} 48... a4 {[%clk
0:01:10.6]} 49. Rc3 {[%clk 0:01:13.9]} 49... Bf2+ {[%clk 0:01:06.3]} 50. Kg4
{[%clk 0:01:08.2]} 50... Re4+ {[%clk 0:01:03.9]} 51. Kf5 {[%clk 0:01:07.7]}
51... Kxh5 {[%clk 0:00:59.7]} 52. Rd3 {[%clk 0:01:05.6]} 52... Rd4 {[%clk
0:00:57.6]} 53. Rh3+ {[%clk 0:01:05.2]} 53... Rh4 {[%clk 0:00:54.8]} 54. Rc3
{[%clk 0:01:01.3]} 54... Bd4 {[%clk 0:00:49.8]} 55. Rc8 {[%clk 0:00:59.7]} 55...
Rh1 {[%clk 0:00:48.2]} 56. Kf4 {[%clk 0:00:54.7]} 56... Rf1+ {[%clk 0:00:47.3]}
57. Kg3 {[%clk 0:00:54.7]} 57... a3 {[%clk 0:00:47.5]} 58. Rd8 {[%clk 0:00:50]}
58... Rf5 {[%clk 0:00:46.4]} 59. Rd7 {[%clk 0:00:39.9]} 59... a2 {[%clk
0:00:44.1]} 60. Rh7+ {[%clk 0:00:40.5]} 60... Kg6 {[%clk 0:00:43.8]} 61. Rh2
{[%clk 0:00:41]} 61... a1=Q {[%clk 0:00:40]} 62. Kh3 {[%clk 0:00:41.3]} 62...
Qf1+ {[%clk 0:00:39.2]} 63. Kh4 {[%clk 0:00:40.8]} 63... Rh5+ {[%clk 0:00:37.9]}
64. Kg3 {[%clk 0:00:39.7]} 64... Be5+ {[%clk 0:00:37.9]} 65. Kg4 {[%clk
0:00:39.8]} 65... Qf3# {[%clk 0:00:37.8]} 0-1

[Event "Early-Titled-Tuesday-Blitz-March-12-2024"]
[Site "Chess.com"]
[Date "2024.03.12"]
[Round "3"]
[White "MightyMike_009"]
[Black "volodja49"]
[Result "1-0"]
[WhiteElo "2868"]
[BlackElo "2605"]
[TimeControl "180+1"]
[EndTime "8:28:10 PDT"]
[Termination "MightyMike_009 won on time"]

1. d4 {[%clk 0:02:57.4]} 1... d5 {[%clk 0:02:59.8]} 2. c4 {[%clk 0:02:57.6]}
2... e6 {[%clk 0:03:00.2]} 3. Nc3 {[%clk 0:02:57.9]} 3... Nf6 {[%clk 0:03:00.5]}
4. cxd5 {[%clk 0:02:58.3]} 4... Nxd5 {[%clk 0:03:01.4]} 5. e4 {[%clk 0:02:57.8]}
5... Nxc3 {[%clk 0:03:01.6]} 6. bxc3 {[%clk 0:02:58.4]} 6... c5 {[%clk
0:03:02.4]} 7. Nf3 {[%clk 0:02:58.1]} 7... cxd4 {[%clk 0:03:03]} 8. cxd4 {[%clk
0:02:58.2]} 8... Bb4+ {[%clk 0:03:03.7]} 9. Bd2 {[%clk 0:02:57.9]} 9... Bxd2+
{[%clk 0:03:04.4]} 10. Qxd2 {[%clk 0:02:58.5]} 10... O-O {[%clk 0:03:05.1]} 11.
Be2 {[%clk 0:02:50.4]} 11... b6 {[%clk 0:03:01.2]} 12. O-O {[%clk 0:02:49.3]}
12... Bb7 {[%clk 0:02:59.2]} 13. Qe3 {[%clk 0:02:42.2]} 13... Nc6 {[%clk
0:02:56.3]} 14. Rfd1 {[%clk 0:02:37.8]} 14... Re8 {[%clk 0:02:55.8]} 15. Bb5
{[%clk 0:02:36.3]} 15... a6 {[%clk 0:02:54.9]} 16. Bxc6 {[%clk 0:02:12]} 16...
Bxc6 {[%clk 0:02:55.8]} 17. Ne5 {[%clk 0:02:08.9]} 17... Rc8 {[%clk 0:02:40.8]}
18. Qf3 {[%clk 0:01:55.6]} 18... Qe7 {[%clk 0:02:30.3]} 19. d5 {[%clk
0:01:12.5]} 19... exd5 {[%clk 0:02:20]} 20. exd5 {[%clk 0:01:12.3]} 20... Qxe5
{[%clk 0:01:20]} 21. dxc6 {[%clk 0:01:12.1]} 21... g6 {[%clk 0:00:53.2]} 22. h3
{[%clk 0:01:05.5]} 22... Qe4 {[%clk 0:00:48.7]} 23. Qxe4 {[%clk 0:00:55.9]}
23... Rxe4 {[%clk 0:00:47.8]} 24. Rac1 {[%clk 0:00:54.9]} 24... Kf8 {[%clk
0:00:46]} 25. Rd7 {[%clk 0:00:38.7]} 25... Re6 {[%clk 0:00:37.8]} 26. c7 {[%clk
0:00:37.6]} 26... Re7 {[%clk 0:00:33.9]} 27. Rd8+ {[%clk 0:00:36.5]} 27... Re8
{[%clk 0:00:34.4]} 28. Rd6 {[%clk 0:00:29.4]} 28... Re7 {[%clk 0:00:26.2]} 29.
Rxb6 {[%clk 0:00:22.6]} 29... Rexc7 {[%clk 0:00:26.1]} 30. Rxc7 {[%clk
0:00:23.2]} 30... Rxc7 {[%clk 0:00:27]} 31. Rxa6 {[%clk 0:00:23.6]} 31... Rc1+
{[%clk 0:00:27.3]} 32. Kh2 {[%clk 0:00:24]} 32... Rc2 {[%clk 0:00:28.2]} 33. Kg3
{[%clk 0:00:24.4]} 33... Kg7 {[%clk 0:00:29.1]} 34. a4 {[%clk 0:00:24]} 34... h5
{[%clk 0:00:29.3]} 35. h4 {[%clk 0:00:23.9]} 35... Ra2 {[%clk 0:00:30.2]} 36. f3
{[%clk 0:00:23.9]} 36... Kh6 {[%clk 0:00:28.1]} 37. Kh3 {[%clk 0:00:24]} 37...
Ra1 {[%clk 0:00:26.8]} 38. g4 {[%clk 0:00:20.5]} 38... Ra3 {[%clk 0:00:24.2]}
39. g5+ {[%clk 0:00:19.9]} 39... Kg7 {[%clk 0:00:24.1]} 40. Kg3 {[%clk
0:00:20.8]} 40... Rxa4 {[%clk 0:00:23.3]} 41. Rxa4 {[%clk 0:00:20.6]} 1-0

[Event "Early-Titled-Tuesday-Blitz-March-12-2024"]
[Site "Chess.com"]
[Date "2024.03.12"]
[Round "3"]
[White "GMSrinath"]
[Black "VD_coach"]
[Result "1-0"]
[WhiteElo "2791"]
[BlackElo "2513"]
[TimeControl "180+1"]
[EndTime "8:28:10 PDT"]
[Termination "GMSrinath won by resignation"]

1. e4 {[%clk 0:03:00.9]} 1... Nf6 {[%clk 0:02:57.9]} 2. e5 {[%clk 0:03:00.5]}
2... Nd5 {[%clk 0:02:57.7]} 3. d4 {[%clk 0:03:01.4]} 3... d6 {[%clk 0:02:57.5]}
4. Nf3 {[%clk 0:03:02.1]} 4... Bg4 {[%clk 0:02:55.9]} 5. Be2 {[%clk 0:03:00.8]}
5... e6 {[%clk 0:02:55.9]} 6. exd6 {[%clk 0:02:58.1]} 6... cxd6 {[%clk
0:02:54.6]} 7. O-O {[%clk 0:02:58.7]} 7... Be7 {[%clk 0:02:54.1]} 8. Nbd2 {[%clk
0:02:59.3]} 8... O-O {[%clk 0:02:50.5]} 9. Ne4 {[%clk 0:02:58.9]} 9... Nf6
{[%clk 0:02:43.9]} 10. Ng3 {[%clk 0:02:59]} 10... Nc6 {[%clk 0:02:37.4]} 11. h3
{[%clk 0:02:50.1]} 11... Bxf3 {[%clk 0:02:37.2]} 12. Bxf3 {[%clk 0:02:51]} 12...
d5 {[%clk 0:02:37.6]} 13. c3 {[%clk 0:02:50.9]} 13... b5 {[%clk 0:02:31.5]} 14.
Re1 {[%clk 0:02:49.6]} 14... Rc8 {[%clk 0:02:26.6]} 15. a3 {[%clk 0:02:39.9]}
15... a5 {[%clk 0:02:21.7]} 16. b4 {[%clk 0:02:40.4]} 16... a4 {[%clk
0:02:17.9]} 17. Ne2 {[%clk 0:02:36.2]} 17... Nb8 {[%clk 0:02:08.3]} 18. Qd3
{[%clk 0:02:36.1]} 18... Rc4 {[%clk 0:01:41.4]} 19. Bg5 {[%clk 0:02:31.2]} 19...
Nbd7 {[%clk 0:00:46.2]} 20. Nf4 {[%clk 0:02:29.8]} 20... Nb6 {[%clk 0:00:46.2]}
21. Ne2 {[%clk 0:02:25.3]} 21... Ne8 {[%clk 0:00:36.5]} 22. Bd2 {[%clk
0:02:23.6]} 22... Nd6 {[%clk 0:00:35.7]} 23. Ng3 {[%clk 0:02:21.6]} 23... Rc8
{[%clk 0:00:35.5]} 24. Ne2 {[%clk 0:02:17.1]} 24... Nbc4 {[%clk 0:00:35.8]} 25.
Bf4 {[%clk 0:02:16]} 25... Re8 {[%clk 0:00:35.5]} 26. Bh2 {[%clk 0:02:16.3]}
26... Nb2 {[%clk 0:00:35.6]} 27. Qd2 {[%clk 0:02:13.2]} 27... Nbc4 {[%clk
0:00:35.3]} 28. Qf4 {[%clk 0:02:13.7]} 28... Nf5 {[%clk 0:00:33.9]} 29. Bg4
{[%clk 0:02:10.3]} 29... Bd6 {[%clk 0:00:33.5]} 30. Qf3 {[%clk 0:02:09]} 30...
Bxh2+ {[%clk 0:00:30]} 31. Kxh2 {[%clk 0:02:09.9]} 31... Nfd6 {[%clk 0:00:27.3]}
32. Ng3 {[%clk 0:02:05.2]} 32... Qf6 {[%clk 0:00:26.4]} 33. Qe2 {[%clk
0:01:58.8]} 33... g6 {[%clk 0:00:23.7]} 34. Kg1 {[%clk 0:01:55.9]} 34... h5
{[%clk 0:00:23.7]} 35. Bf3 {[%clk 0:01:56]} 35... Kh7 {[%clk 0:00:23.3]} 36. Qd3
{[%clk 0:01:54.9]} 36... Nf5 {[%clk 0:00:20.7]} 37. Nf1 {[%clk 0:01:54.4]} 37...
Nb2 {[%clk 0:00:20.5]} 38. Qxb5 {[%clk 0:01:51.3]} 38... Nc4 {[%clk 0:00:20.2]}
39. Qxa4 {[%clk 0:01:49.8]} 39... Nh4 {[%clk 0:00:20.3]} 40. Be2 {[%clk
0:01:47.9]} 40... Qg5 {[%clk 0:00:20.3]} 41. g3 {[%clk 0:01:44.3]} 41... Nd2
{[%clk 0:00:19.2]} 42. Nxd2 {[%clk 0:01:40.1]} 42... Qxd2 {[%clk 0:00:16.9]} 43.
gxh4 {[%clk 0:01:40.8]} 43... e5 {[%clk 0:00:15.2]} 44. Bf1 {[%clk 0:01:31.6]}
44... Re6 {[%clk 0:00:12.9]} 45. dxe5 {[%clk 0:01:29.3]} 45... Rxc3 {[%clk
0:00:12.2]} 46. Bg2 {[%clk 0:01:27.1]} 46... Qf4 {[%clk 0:00:09.2]} 47. Qd1
{[%clk 0:01:14.8]} 47... Rec6 {[%clk 0:00:06.1]} 48. Qxd5 {[%clk 0:01:12]} 48...
Rc2 {[%clk 0:00:05.8]} 49. Rf1 {[%clk 0:01:09.8]} 49... R6c3 {[%clk 0:00:05.4]}
50. Qe4 {[%clk 0:00:55.1]} 50... Qd2 {[%clk 0:00:03.2]} 51. Rad1 {[%clk
0:00:53.1]} 1-0

[Event "Early-Titled-Tuesday-Blitz-March-12-2024"]
[Site "Chess.com"]
[Date "2024.03.12"]
[Round "3"]
[White "HansOnTwitch"]
[Black "AlmasRakhmatullaev"]
[Result "1-0"]
[WhiteElo "3105"]
[BlackElo "2812"]
[TimeControl "180+1"]
[EndTime "8:28:11 PDT"]
[Termination "HansOnTwitch won on time"]

1. e4 {[%clk 0:02:57.9]} 1... e5 {[%clk 0:02:59.4]} 2. Nf3 {[%clk 0:02:58.2]}
2... Nc6 {[%clk 0:02:59.6]} 3. Bb5 {[%clk 0:02:58.5]} 3... Nge7 {[%clk
0:02:59.2]} 4. Nc3 {[%clk 0:02:56.5]} 4... a6 {[%clk 0:02:44]} 5. Be2 {[%clk
0:02:36.8]} 5... d5 {[%clk 0:02:37.8]} 6. d4 {[%clk 0:02:33.8]} 6... dxe4 {[%clk
0:02:29.9]} 7. Nxe5 {[%clk 0:02:25.7]} 7... Nxe5 {[%clk 0:02:26]} 8. dxe5 {[%clk
0:02:24.4]} 8... Qxd1+ {[%clk 0:02:26.9]} 9. Bxd1 {[%clk 0:02:16]} 9... Bf5
{[%clk 0:02:25.6]} 10. h3 {[%clk 0:00:59.6]} 10... h5 {[%clk 0:02:16.4]} 11. O-O
{[%clk 0:00:56.7]} 11... O-O-O {[%clk 0:02:08.6]} 12. Bg5 {[%clk 0:00:56.4]}
12... Re8 {[%clk 0:02:00.6]} 13. f3 {[%clk 0:00:44.1]} 13... exf3 {[%clk
0:01:45.6]} 14. Bxf3 {[%clk 0:00:45]} 14... Be6 {[%clk 0:01:43.8]} 15. Rfe1
{[%clk 0:00:39]} 15... Nf5 {[%clk 0:01:40.2]} 16. Rad1 {[%clk 0:00:36.3]} 16...
Bc5+ {[%clk 0:01:39.5]} 17. Kh2 {[%clk 0:00:36.5]} 17... h4 {[%clk 0:01:32.6]}
18. Re4 {[%clk 0:00:27.7]} 18... Bf2 {[%clk 0:01:27.8]} 19. Ne2 {[%clk
0:00:25.8]} 19... Ng3 {[%clk 0:01:12.3]} 20. Nxg3 {[%clk 0:00:25.5]} 20... hxg3+
{[%clk 0:01:06.8]} 21. Kh1 {[%clk 0:00:26]} 21... Bf5 {[%clk 0:00:48.5]} 22. Re2
{[%clk 0:00:21.4]} 22... Rh7 {[%clk 0:00:38.2]} 23. Be3 {[%clk 0:00:10.7]} 23...
Bxe3 {[%clk 0:00:16.8]} 24. Rxe3 {[%clk 0:00:10.7]} 24... Bxc2 {[%clk
0:00:13.4]} 25. Bg4+ {[%clk 0:00:11.2]} 25... Kb8 {[%clk 0:00:13]} 26. Rde1
{[%clk 0:00:09.4]} 26... Rh6 {[%clk 0:00:08.8]} 27. Rxg3 {[%clk 0:00:09.7]}
27... Rb6 {[%clk 0:00:09.5]} 28. b3 {[%clk 0:00:09.7]} 28... Bg6 {[%clk
0:00:09.7]} 29. Bd7 {[%clk 0:00:09.4]} 29... Re7 {[%clk 0:00:09.6]} 30. e6
{[%clk 0:00:10]} 30... c5 {[%clk 0:00:07.6]} 31. Rc1 {[%clk 0:00:06.9]} 31...
Rd6 {[%clk 0:00:03.5]} 32. Rxc5 {[%clk 0:00:06.7]} 32... Be4 {[%clk 0:00:03.2]}
33. Rxg7 {[%clk 0:00:06.1]} 33... Rd2 {[%clk 0:00:03.3]} 34. exf7 {[%clk
0:00:05.1]} 1-0